Cogmind - Beta 15 @@@ ROGUE MODE // 2025.05.30 @ 18:16:11 Player: Btuck Result: Self-destructed Performance ------------- Evolutions (1) 500 Regions Visited (4) 800 Robots Destroyed (18) 90 Value Destroyed (428) 428 Prototype IDs (1) 20 Alien Tech Used (0) 0 Bonus (-36) -36 TOTAL SCORE: 1802 Bonus ------- Friendly Fire -36 Cogmind --------- Core Integrity 279/400 Matter 98/300 Energy 265/265 System Corruption 0% Temperature Cool (80) Movement Core (400) Ox7 Location -9/Exiles Parts ------- > --- POWER (1) -------- Improved Ion Engine > --- PROPULSION (3) --- Improved Aluminum Leg > --- UTILITY (2) ------ Medium Storage Unit > --- WEAPON (3) ------- Improved Assault Rifle Improved Assault Rifle > --- INVENTORY (10) --- Improved Ion Engine Improved Aluminum Leg Structural Scanner Seismic Detector Hardened Light Armor Plating Medium Laser Assault Rifle Light Assault Rifle Heavy Assault Rifle Mini Grenade Launcher Peak State ------------ > --- POWER ------------ Improved Ion Engine > --- PROPULSION ------- Aluminum Leg Aluminum Leg Improved Aluminum Leg > --- UTILITY ---------- Medium Storage Unit Hardened Light Armor Plating > --- WEAPON ----------- Improved Assault Rifle Improved Assault Rifle Improved Assault Rifle > --- INVENTORY -------- Improved Ion Engine Small Storage Unit Structural Scanner Seismic Detector Hardened Light Armor Plating Medium Laser Assault Rifle Light Assault Rifle Heavy Assault Rifle Mini Grenade Launcher [Rating: 19] Favorites ----------- Power Improved Ion Engine Engine Improved Ion Engine Propulsion Aluminum Leg Leg Aluminum Leg Utility Medium Storage Unit Device Seismic Detector Storage Medium Storage Unit Protection Hardened Light Armor Plating Weapon Improved Assault Rifle Ballistic Gun Improved Assault Rifle Build | -11 -10 -9 -9 -9 ------- Run | Yrd Mat Mat Min Exi Slots Evolved 2 | . . 2 . . Power . | . . . . . Propulsion 1 | . . 1 . . Utility . | . . . . . Weapon 1 | . . 1 . . Parts Attached 16 | 7 3 5 1 . Power 3 | 1 . 2 . . Engine 3 | 1 . 2 . . Core . | . . . . . Reactor . | . . . . . Propulsion 3 | 2 . . 1 . Treads . | . . . . . Leg 3 | 2 . . 1 . Wheel . | . . . . . Hover . | . . . . . Flight . | . . . . . Utility 5 | 2 1 2 . . Device 1 | 1 . . . . Storage 2 | 1 1 . . . Processor . | . . . . . Hackware . | . . . . . Protection 2 | . . 2 . . Artifact . | . . . . . Weapon 5 | 2 2 1 . . Energy Gun . | . . . . . Energy Cannon . | . . . . . Ballistic Gun 5 | 2 2 1 . . Ballistic Cannon . | . . . . . Launcher . | . . . . . Special Weapon . | . . . . . Impact Weapon . | . . . . . Slashing Weapon . | . . . . . Piercing Weapon . | . . . . . Special Melee Weapon . | . . . . . Unidentified Prototypes 1 | . 1 . . . Parts Lost 4 | . . . . 4 Power . | . . . . . Propulsion 2 | . . . . 2 Utility 1 | . . . . 1 Weapon 1 | . . . . 1 Highest Loss Streak 4 | . . . . 4 To Critical Strikes 3 | . . . . 3 Average Backups 7 | 1 6 9 10 10 Power . | . 1 1 1 1 Propulsion . | . . . . 1 Utility 2 | . 1 3 3 3 Weapon 4 | . 4 4 5 5 Tool/Special . | . . . . . Unused Backups 9 | . 1 2 . 6 Power 1 | . . 1 . . Propulsion 1 | . . . . 1 Utility 3 | . . 1 . 2 Weapon 4 | . 1 . . 3 Tool/Special . | . . . . . Average Slot Usage (%) 92 | . 99 87 92 96 Engine 11 | . 14 11 11 11 Leg 25 | . 28 22 25 30 Device 5 | . 14 2 . . Storage 11 | . 14 11 11 11 Protection 6 | . . 8 11 9 Ballistic Gun 31 | . 27 32 33 33 Peak Build Rating 19 | 7 12 17 19 19 Average Rating 13 | 5 11 16 17 18 On Entrance 11 | . 7 12 17 19 Naked Turns . | . . . . . Heaviest Build 31 | 12 20 31 31 31 Greatest Support 33 | 20 20 20 33 33 Greatest Overweight (x) 1 | . . 1 1 . Average Overweight (x) . | . . . . . Largest Inventory Capacity 10 | 8 10 10 10 10 Average Capacity 9 | 7 9 10 10 10 Most Carried 10 | 2 9 10 10 10 Average Carried 8 | 1 6 9 9 10 Final Capacity 10 | 8 10 10 10 10 Final Carried 10 | 2 9 10 10 10 Class Distribution -------------------- 53% | Tank 38% | Mutant 8% | Gunner Dominant Class ---------------- Mutant | -10/Materials Tank | -9/Materials Tank | -9/Mines Tank | -9/Exiles Resources | -11 -10 -9 -9 -9 ----------- Run | Yrd Mat Mat Min Exi Matter Collected 443 | 110 130 203 . . Remotely . | . . . . . Salvage Created 572 | 39 119 305 109 . Parts 46 | 4 9 26 7 . Haulers Intercepted . | . . . . . Recyclers Shooed . | . . . . . Parts Field Recycled . | . . . . . Retrieved Matter . | . . . . . Parts Self-Destructed . | . . . . . Prevented . | . . . . . Kills | -11 -10 -9 -9 -9 ------- Run | Yrd Mat Mat Min Exi Combat Hostiles Destroyed 15 | . 3 10 2 . Guns 15 | . 3 10 2 . Classes Destroyed 6 | 1 1 3 1 . Tunneler 2 | 2 . . . . Watcher 1 | . . 1 . . Swarmer 7 | . . 7 . . Grunt 4 | . 3 . 1 . Duelist 1 | . . . 1 . Sentry 3 | . . 3 . . Best Kill Streak 9 | 2 3 9 2 . Combat Bots Only 9 | . 3 9 2 . Max Kills in Single Turn 2 | 1 1 2 1 . Gunslinging 1 | . . 1 . . Exploded . | . . . . . Melee . | . . . . . Uniques/NPCs Destroyed . | . . . . . Combat | -11 -10 -9 -9 -9 -------- Run | Yrd Mat Mat Min Exi Hostile Shots Fired 83 | . 5 27 7 44 Missed 27 | . 2 11 3 11 Hits 56 | . 3 16 4 33 Melee 7 | . . . 3 4 Projectile 49 | . 3 16 1 29 Critical Strikes 11 | . . . . 11 Part Disruptions 2 | . . . . 2 Damage Taken 924 | . 31 171 114 608 Core 121 | . . 21 . 100 Absorbed by Shields . | . . . . . Core Remaining (%) 100 | 100 100 . . . Volleys Fired 39 | 5 7 15 6 6 Largest 3 | 2 2 3 3 3 Hottest 69 | 40 46 69 69 69 Shots Fired 105 | 10 14 45 18 18 Gun 105 | 10 14 45 18 18 Cannon . | . . . . . Launcher . | . . . . . Special . | . . . . . Kinetic 105 | 10 14 45 18 18 Thermal . | . . . . . Explosive . | . . . . . Electromagnetic . | . . . . . Robot Hit Streak 16 | 3 4 10 16 15 Robot Miss Streak 3 | 2 2 3 2 2 Penetration Max . | . . . . . Secondary Targets 2 | . . 2 . . Max Gunslinging Chain 1 | . . 1 . . Shots Hit Robots 73 | 5 9 29 14 16 Core Hits 23 | 2 4 13 4 . Critical Kills 2 | . 1 1 . . Critical Parts Destroyed . | . . . . . Critical Strikes 2 | . 1 1 . . Destroy 2 | . 1 1 . . Melee Attacks . | . . . . . Impact . | . . . . . Slashing . | . . . . . Piercing . | . . . . . Sneak Attacks . | . . . . . Combat Hostiles . | . . . . . Follow-up Attacks . | . . . . . Damage Inflicted 1064 | 54 144 426 209 231 Guns 1064 | 54 144 426 209 231 Cannons . | . . . . . Explosions . | . . . . . Melee . | . . . . . Ramming . | . . . . . Kinetic 1064 | 54 144 426 209 231 Thermal . | . . . . . Explosive . | . . . . . Electromagnetic . | . . . . . Impact . | . . . . . Slashing . | . . . . . Piercing . | . . . . . Highest Corruption . | . . . . . Average Corruption . | . . . . . Corruption Purged . | . . . . . Corruption Blocked . | . . . . . Overload Shots . | . . . . . Overflow Damage . | . . . . . Projectiles . | . . . . . Explosions . | . . . . . Melee . | . . . . . Knockbacks . | . . . . . Impact . | . . . . . Kinetic . | . . . . . Secondary . | . . . . . Self-Inflicted Damage . | . . . . . Shots . | . . . . . Rammed . | . . . . . Targets Rammed . | . . . . . Kicked . | . . . . . Crushed . | . . . . . Highest Temperature 97 | . 1 54 97 88 Average Temperature 39 | . 1 19 49 52 Received Heat Transfer 149 | . 18 45 6 80 Siege Activations . | . . . . . Martial Activations . | . . . . . Shielding Activations . | . . . . . Robots Disrupted . | . . . . . Combat Hostiles . | . . . . . Robots Corrupted . | . . . . . Combat Hostiles . | . . . . . Parts Fried . | . . . . . Impact Corruptions . | . . . . . Robots Melted . | . . . . . Combat Hostiles . | . . . . . Parts Melted . | . . . . . Heat Transferred . | . . . . . Parts Sabotaged . | . . . . . Parts Stolen . | . . . . . Parts Stripped . | . . . . . Power Chain Reactions . | . . . . . Alert | -11 -10 -9 -9 -9 ------- Run | Yrd Mat Mat Min Exi Maximum Alert Level 1 | . . 1 . . Low Security (%) 96 | 100 100 92 100 . Level 1 3 | . . 7 . . Level 2 . | . . . . . Level 3 . | . . . . . Level 4 . | . . . . . Level 5 . | . . . . . High Security . | . . . . . Max Security . | . . . . . Peak Influence 211 | 10 60 211 79 . Initial 34 | . . 10 34 . Average 79 | 1 16 142 50 . Influence Increases 409 | 10 76 258 65 . Destroy 0b10 Robot/C 300 | . 60 200 40 . Destroy 0b10 Robot/NC 15 | 10 . 5 . . Destroy Leader 72 | . 10 52 10 . Successful Hack 6 | . 6 . . . Disable Machine 15 | . . . 15 . Destroy Structure 1 | . . 1 . . Influence Decreases 409 | 10 50 196 84 69 Entered New Map 139 | . . 16 54 69 Time Decay 270 | 10 50 180 30 . Squads Dispatched 1 | . 1 . . . Investigation 1 | . 1 . . . Extermination . | . . . . . Reinforcement . | . . . . . Assault . | . . . . . Garrison . | . . . . . Intercept . | . . . . . Searches Triggered . | . . . . . Construction Impeded . | . . . . . Haulers Reinforced . | . . . . . Active Scanning Responses . | . . . . . Cargo Convoy Interrupts . | . . . . . Stealth | -11 -10 -9 -9 -9 --------- Run | Yrd Mat Mat Min Exi Distress Signals 1 | . . 1 . . Communications Jammed . | . . . . . Distress Signals . | . . . . . Times Spotted 25 | . 4 11 2 8 Peak Tracking Total 9 | . 3 8 2 9 Tactical Retreats . | . . . . . Traps | -11 -10 -9 -9 -9 ------- Run | Yrd Mat Mat Min Exi Traps Triggered 1 | . 1 . . . Indirectly . | . . . . . Trap Hack Attempts . | . . . . . Triggered . | . . . . . Disarmed . | . . . . . Reprogrammed . | . . . . . Reused . | . . . . . Traps Extracted . | . . . . . Installed . | . . . . . Triggered . | . . . . . Machines | -11 -10 -9 -9 -9 ---------- Run | Yrd Mat Mat Min Exi Machines Disabled 2 | . . . 1 1 Max in Single Turn 1 | . . . 1 1 Machines Repaired . | . . . . . Machines Dismantled . | . . . . . Machines Sabotaged . | . . . . . Overloaded Fab Kills . | . . . . . Hacking | -11 -10 -9 -9 -9 --------- Run | Yrd Mat Mat Min Exi Machines Accessed 3 | . 2 1 . . Terminals 3 | . 2 1 . . Fabricators . | . . . . . Repair Stations . | . . . . . Recycling Units . | . . . . . Scanalyzers . | . . . . . Garrison Access . | . . . . . Total Hacks 5 | . 4 1 . . Successful 2 | . 2 . . . Failed 3 | . 2 1 . . Catastrophic . | . . . . . Database Lockouts . | . . . . . Manual 3 | . 2 1 . . Terminals 5 | . 4 1 . . Fabricators . | . . . . . Repair Stations . | . . . . . Recycling Units . | . . . . . Scanalyzers . | . . . . . Garrison Access . | . . . . . Terminal Hacks 2 | . 2 . . . Robot Analysis 2 | . 2 . . . Fabricator Hacks . | . . . . . Repair Station Hacks . | . . . . . Recycling Unit Hacks . | . . . . . Scanalyzer . | . . . . . Garrison Access Hacks . | . . . . . Unauthorized Hacks . | . . . . . Terminals . | . . . . . Fabricators . | . . . . . Repair Stations . | . . . . . Recycling Units . | . . . . . Scanalyzers . | . . . . . Garrison Access . | . . . . . Data Cores Recovered . | . . . . . Used . | . . . . . Hacking Detections . | . . . . . Full Trace Events . | . . . . . Feedback Events . | . . . . . Feedback Blocked . | . . . . . Robot Schematics Acquired . | . . . . . Robots Built . | . . . . . Authchips . | . . . . . Time . | . . . . . Total Robot Build Rating . | . . . . . Part Schematics Acquired . | . . . . . Parts Built . | . . . . . Authchips . | . . . . . Time . | . . . . . Total Part Build Rating . | . . . . . Parts Repaired . | . . . . . Time . | . . . . . Parts Recycled . | . . . . . Recycled Matter . | . . . . . Retrieved Matter . | . . . . . Retrieved Components . | . . . . . Parts Scanalyzed . | . . . . . Part Schematics Acquired . | . . . . . Parts Damaged . | . . . . . Bothacking | -11 -10 -9 -9 -9 ------------ Run | Yrd Mat Mat Min Exi Used RIF Installer . | . . . . . Robots Hacked . | . . . . . Non-combat . | . . . . . Combat . | . . . . . Robot Hacks Applied . | . . . . . Relay Couplers Released . | . . . . . Fabnet Peak Effective % . | . . . . . Robots Rewired . | . . . . . Allies Hacked . | . . . . . Hacks Repelled . | . . . . . Allies | -11 -10 -9 -9 -9 -------- Run | Yrd Mat Mat Min Exi Total Allies . | . . . . . Largest Group . | . . . . . Highest-Rated Group . | . . . . . Highest-Rated Ally . | . . . . . Total Orders . | . . . . . Ally Attacks . | . . . . . Total Damage . | . . . . . Kills . | . . . . . Allies Corrupted . | . . . . . Allies Melted . | . . . . . Intel | -11 -10 -9 -9 -9 ------- Run | Yrd Mat Mat Min Exi Active Infowar (turns) 322 | 2 245 75 . . Seismic 322 | 2 245 75 . . Robot Analysis Total 2 | . 2 . . . Derelict Logs Recovered . | . . . . . Drone Launches . | . . . . . Drone Recoveries . | . . . . . Exploration | -11 -10 -9 -9 -9 ------------- Run | Yrd Mat Mat Min Exi Turns Passed 862 | 83 245 378 75 81 Spaces Moved 485 | 55 174 171 34 51 Core 13 | 13 . . . . Treads . | . . . . . Legs 472 | 42 174 171 34 51 Wheels . | . . . . . Hover . | . . . . . Flight . | . . . . . Fastest Speed 50 | 50 120 120 120 120 Average Speed 143 | 103 120 185 150 120 Slowest Speed 190 | 120 120 190 190 120 Overloaded Moves . | . . . . . Propulsion Burnouts . | . . . . . Robots Hopped . | . . . . . Potential Cave-ins . | . . . . . Cave-ins Triggered . | . . . . . Exploration Rate (%) 16 | 5 31 15 13 16 Regions Visited 4 Branch Regions 2 Pre-discovered Areas . | . . . . . Known Exits Taken . | . . . . . Unknown Exits Taken 4 | 1 1 1 1 . Scrap Searched . | . . . . . Spaces Dug . | . . . . . Terrain Destroyed . | . . . . . Melee . | . . . . . Projectile . | . . . . . AOE . | . . . . . Terrain Rammed . | . . . . . Walls Destroyed . | . . . . . Machines Disabled . | . . . . . Actions | -11 -10 -9 -9 -9 --------- Run | Yrd Mat Mat Min Exi Total 564 | 68 196 199 44 57 Wait 9 | . 5 2 2 . Move 481 | 54 173 170 33 51 Hop . | . . . . . Pick Up 11 | 2 5 3 1 . Fast Attach 11 | 7 2 1 1 . Attach 1 | . . 1 . . Detach 2 | . 2 . . . Swap 4 | . 1 3 . . Drop 6 | . 1 4 1 . Fire 39 | 5 7 15 6 6 Melee . | . . . . . Ram . | . . . . . Kick . | . . . . . Crush . | . . . . . Escape Stasis . | . . . . . Rewire . | . . . . . Trap . | . . . . . Miscellaneous . | . . . . . Route ------- -11/Scrapyard -10/Materials -9/Materials -9/Mines -9/Exiles History --------- Turn | Location | Event 11 | -11/Scrapyard | Discovered new exit (range 15) 84 | -11/Scrapyard | Entered Materials 218 | -10/Materials | Discovered new exit (range 6) 311 | -10/Materials | Build established: Mutant 329 | -10/Materials | Entered another Materials area 329 | -9/Materials | Evolved 2 slots: Propulsion x1, Weapon x1 400 | -9/Materials | Destroyed 9 combat bots 572 | -9/Materials | Discovered new exit (range 9) 707 | -9/Materials | Entered Mines 709 | -9/Mines | Met a Derelict bent on vengeance 712 | -9/Mines | Build established: Tank 776 | -9/Mines | Deemed a non-threat by the Exiles lab entrance 777 | -9/Mines | Discovered new exit (range 5) 782 | -9/Mines | Entered Exiles 812 | -9/Exiles | Met 8R-AWN 833 | -9/Exiles | Met EX-HEX 845 | -9/Exiles | Attacked by the Exiles 863 | -9/Exiles | Self-destructed Last Messages --------------- 00856_ Penetrated by HV Slug. 00856_ HV Slug penetrates Earth. 00856_ Penetrated by HV Slug. 00856_ HV Slug penetrates Earth. 00858_ Penetrated by HV Slug. 00858_ HV Slug penetrates Earth. 00858_ Penetrated by HV Slug. 00858_ Hrd. Light Armor Plating destroyed. 00858_ HV Slug penetrates Earth. 00860_ Penetrated by HV Slug. 00860_ HV Slug penetrates Earth. 00860_ Penetrated by HV Slug. 00860_ Critical hit (Destroy). 00860_ Imp. Assault Rifle destroyed. 00860_ HV Slug penetrates Earth. 00863_ Penetrated by HV Slug. 00863_ Critical hit (Destroy). 00863_ Aluminum Leg destroyed. 00863_ HV Slug penetrates Earth. 00863_ HV Slug penetrates Wall. Map ----- +----------------------------------------------------+ | ?????????????????????????????????????????????????? | | ?????????????????????????????????????????????????? | | ?????????????????????????????????????????????????? | | ?????????????????????????????????????????????????? | | ?????????????????????????????????????????????????? | | ?????????????????????????????????????????????????? | | ?????????????????????????????????????????????????? | | ?????????????????????????????????????????????????? | | ?????????????????????????????????????????????????? | | ?????????????????????????????????????????????????? | | ?????????????????????????????????????????????????? | | ?????????????????????????????????????????????????? | | ?????????????????????????????????????????????????? | | ?????????????????????????????????????????????????? | | ?????????????????????????????????????????????????? | | ?????????????????????????????????????????????????? | | ?????????????????????????????????????????????????? | | ?????????????????????????????????????????????????? | | ????????????????????????????????????????????? ???? | | ????????????????????????????????????????????? ? | | ????????????????????????????????????????????# #? | | ???????????????????????????????????????????# ## | | ??????????????????????????????????????????# # | | ???? ???????????????#####???????????????# # | | ???? " "???????????##"a ########???????## ? | | ??? ""??????????#" g@; ### #?? | | ??? ""????????##" aa########??????# #?? | | ??? "?????### a ###????????### #??? | | ?? #????# a ########## #??? | | ?? #??## #""""## #???? | | ? ### * ##??? | | ? ## * #??? | | ? #### ##?? | | ? a ""#?#"""""#### ### | | ? a #"""##?#######??#### * # | | ?? ######??????????????##### | | ?? #????????????????????????### | | ??? #???????????????????????????### | | ???"" ""??????????????????????????????### | | ????" "????????????????????????????????#" | | ????#"""""""#????????????????????????????????#### | | ?????######?????????????????????????????????????# | | ????????????????????????????????????????????????## | | ?????????????????????????????????????????????????# | | ?????????????????????????????????????????????????? | | ?????????????????????????????????????????????????? | | ?????????????????????????????????????????????????? | | ?????????????????????????????????????????????????? | | ?????????????????????????????????????????????????? | | ?????????????????????????????????????????????????? | +----------------------------------------------------+ Best States ------------- Heat Dissipation 28 Energy Generation 12 Energy Capacity 265 Matter Stores 222 Matter Capacity 300 Sight Range 16 Terrain Scan Density 10 Armor Coverage 150 Evasion (%) 55 Item Schematics ----------------- None Robot Schematics ------------------ None Fabricated ------------ Nothing Repaired ---------- Nothing Alien Tech Used ----------------- None Achievements -------------- None Challenges ------------ None Game ------ Seed AntimatterBladeBlade Manual? 0 Play Time 00:07:14 Cumulative 65.9 hours Start 2025.05.30 @ 18:09:43 End 2025.05.30 @ 18:16:11 Sessions 1 Manual Loads 0 Difficulty Rogue Special Mode None Game No. 92 Rogue 92 Adventurer 0 Explorer 0 Win Type - Total 1 Types 1/0/0/0/0/0/0/0/0/0 Lore% 32 Gallery% 39 Achievement% 37 Wizard Run 0 Options --------- Layout 1 ASCII 0 Keyboard 1 Movement Numpad Keybinds 0 Fullscreen 1 Font 32/Smallcaps Map View 50x35 Zoom Use 0% Tactical HUD 1 Map Filters NONE Filters NONE Steam 1 RUN: 516d02f0-3c0b-4df1-a74e-4760aeaf5cec